[Event "Early-Titled-Tuesday-Blitz-November-28-2023"]
[Site "Chess.com"]
[Date "2023.11.28"]
[Round "2"]
[White "esrosenberg"]
[Black "belisarius64"]
[Result "0-1"]
[WhiteElo "2407"]
[BlackElo "2710"]
[TimeControl "180+1"]
[EndTime "8:15:26 PST"]
[Termination "belisarius64 won by resignation"]

1. d4 {[%clk 0:03:00.9]} 1... d5 {[%clk 0:02:58.8]} 2. Nf3 {[%clk 0:03:01.2]}
2... Nf6 {[%clk 0:02:58.7]} 3. g3 {[%clk 0:03:01.5]} 3... Bf5 {[%clk 0:02:58.2]}
4. c4 {[%clk 0:03:01.4]} 4... e6 {[%clk 0:02:56]} 5. Nc3 {[%clk 0:02:51.5]} 5...
c6 {[%clk 0:02:55.7]} 6. Qb3 {[%clk 0:02:50.4]} 6... Qb6 {[%clk 0:02:53.5]} 7.
c5 {[%clk 0:02:51]} 7... Qxb3 {[%clk 0:02:48.6]} 8. axb3 {[%clk 0:02:51]} 8...
h6 {[%clk 0:02:49.3]} 9. b4 {[%clk 0:02:50.4]} 9... Be7 {[%clk 0:02:45.7]} 10.
b5 {[%clk 0:02:50.5]} 10... O-O {[%clk 0:02:43.7]} 11. b4 {[%clk 0:02:47.3]}
11... cxb5 {[%clk 0:02:39.9]} 12. Nxb5 {[%clk 0:02:27.7]} 12... Nc6 {[%clk
0:02:40.5]} 13. Bd2 {[%clk 0:02:26.1]} 13... Ne4 {[%clk 0:02:40.7]} 14. Ra4
{[%clk 0:02:08.5]} 14... Bf6 {[%clk 0:02:00.1]} 15. e3 {[%clk 0:02:08.1]} 15...
Nxd2 {[%clk 0:01:56]} 16. Kxd2 {[%clk 0:01:53.5]} 16... Be4 {[%clk 0:01:51]} 17.
Bg2 {[%clk 0:01:53.2]} 17... e5 {[%clk 0:01:50.8]} 18. Nd6 {[%clk 0:01:38.2]}
18... exd4 {[%clk 0:01:48]} 19. Nxe4 {[%clk 0:01:36.5]} 19... dxe3+ {[%clk
0:01:44.1]} 20. Kxe3 {[%clk 0:01:34]} 20... dxe4 {[%clk 0:01:42.7]} 21. Kxe4
{[%clk 0:00:38.1]} 21... Rfe8+ {[%clk 0:01:43.1]} 22. Kd3 {[%clk 0:00:35.2]}
22... Rad8+ {[%clk 0:01:42.6]} 0-1

[Event "Early-Titled-Tuesday-Blitz-November-28-2023"]
[Site "Chess.com"]
[Date "2023.11.28"]
[Round "2"]
[White "JimDiGrease"]
[Black "SharapovEvgeny"]
[Result "1-0"]
[WhiteElo "2976"]
[BlackElo "2613"]
[TimeControl "180+1"]
[EndTime "8:15:27 PST"]
[Termination "JimDiGrease won by resignation"]

1. d4 {[%clk 0:03:00.9]} 1... d5 {[%clk 0:02:59.9]} 2. c4 {[%clk 0:02:59.8]}
2... c6 {[%clk 0:03:00.4]} 3. Nf3 {[%clk 0:02:59.9]} 3... Nf6 {[%clk 0:03:00.4]}
4. e3 {[%clk 0:03:00.5]} 4... Bg4 {[%clk 0:02:59.9]} 5. h3 {[%clk 0:02:54.8]}
5... Bxf3 {[%clk 0:02:59.8]} 6. Qxf3 {[%clk 0:02:54.8]} 6... e6 {[%clk
0:03:00.4]} 7. Nc3 {[%clk 0:02:54.5]} 7... Nbd7 {[%clk 0:03:00.3]} 8. Bd3 {[%clk
0:02:52.6]} 8... Bd6 {[%clk 0:03:00.1]} 9. O-O {[%clk 0:02:52.4]} 9... O-O
{[%clk 0:02:59.9]} 10. g4 {[%clk 0:02:36.5]} 10... h6 {[%clk 0:02:56.4]} 11. b3
{[%clk 0:02:28.8]} 11... Qe7 {[%clk 0:02:56.1]} 12. Bb2 {[%clk 0:02:29]} 12...
Rfe8 {[%clk 0:02:55.1]} 13. e4 {[%clk 0:01:53.1]} 13... dxe4 {[%clk 0:02:53.7]}
14. Nxe4 {[%clk 0:01:53.8]} 14... Nxe4 {[%clk 0:02:53.7]} 15. Bxe4 {[%clk
0:01:53.9]} 15... Nf6 {[%clk 0:02:50]} 16. Bc2 {[%clk 0:01:48.9]} 16... Ba3
{[%clk 0:02:47.9]} 17. Bc3 {[%clk 0:01:39.8]} 17... Bb4 {[%clk 0:02:47.3]} 18.
Bb2 {[%clk 0:01:39.6]} 18... Ba3 {[%clk 0:02:47.5]} 19. Bc3 {[%clk 0:01:40.1]}
19... Bb4 {[%clk 0:02:47.9]} 20. Rfe1 {[%clk 0:01:37.2]} 20... Bxc3 {[%clk
0:02:47.3]} 21. Qxc3 {[%clk 0:01:38.1]} 21... Rad8 {[%clk 0:02:47.2]} 22. Qe3
{[%clk 0:01:35.8]} 22... Rd6 {[%clk 0:02:46]} 23. Rad1 {[%clk 0:01:18.5]} 23...
Red8 {[%clk 0:02:45.6]} 24. Qf4 {[%clk 0:01:06.6]} 24... Qd7 {[%clk 0:02:43.5]}
25. Kg2 {[%clk 0:00:54.6]} 25... Rxd4 {[%clk 0:02:15.9]} 26. Rxd4 {[%clk
0:00:55.5]} 26... Qxd4 {[%clk 0:02:16.1]} 27. Rd1 {[%clk 0:00:54.6]} 27... Qb6
{[%clk 0:02:15.7]} 28. c5 {[%clk 0:00:53]} 1-0

[Event "Early-Titled-Tuesday-Blitz-November-28-2023"]
[Site "Chess.com"]
[Date "2023.11.28"]
[Round "2"]
[White "crescentmoon2411"]
[Black "Flaccidmoves"]
[Result "1-0"]
[WhiteElo "2954"]
[BlackElo "2407"]
[TimeControl "180+1"]
[EndTime "8:15:27 PST"]
[Termination "crescentmoon2411 won by resignation"]

1. e4 {[%clk 0:03:00.9]} 1... Nf6 {[%clk 0:02:58.8]} 2. e5 {[%clk 0:03:00.8]}
2... Nd5 {[%clk 0:02:58.8]} 3. c4 {[%clk 0:03:01.6]} 3... Nb6 {[%clk 0:02:59.1]}
4. c5 {[%clk 0:03:02.2]} 4... Nd5 {[%clk 0:02:58.9]} 5. Nc3 {[%clk 0:03:02.9]}
5... e6 {[%clk 0:02:57.9]} 6. d4 {[%clk 0:03:03]} 6... d6 {[%clk 0:02:53.4]} 7.
cxd6 {[%clk 0:03:01.9]} 7... cxd6 {[%clk 0:02:53.1]} 8. Nf3 {[%clk 0:03:02.3]}
8... Nxc3 {[%clk 0:02:43.1]} 9. bxc3 {[%clk 0:03:03.2]} 9... Nd7 {[%clk
0:02:43.4]} 10. exd6 {[%clk 0:03:02.9]} 10... Bxd6 {[%clk 0:02:42.7]} 11. Bd3
{[%clk 0:03:03.8]} 11... Qc7 {[%clk 0:02:34.3]} 12. O-O {[%clk 0:03:04.7]} 12...
Qxc3 {[%clk 0:02:15.4]} 13. Rb1 {[%clk 0:03:05.6]} 13... O-O {[%clk 0:01:55.5]}
14. Rb3 {[%clk 0:03:04.9]} 14... Qc7 {[%clk 0:01:52.2]} 15. d5 {[%clk
0:02:59.2]} 15... exd5 {[%clk 0:01:24.1]} 16. Bb2 {[%clk 0:02:59.3]} 16... Ne5
{[%clk 0:01:15.5]} 17. Nxe5 {[%clk 0:02:47.2]} 17... Bxe5 {[%clk 0:01:16.4]} 18.
Bxh7+ {[%clk 0:02:41.5]} 18... Kxh7 {[%clk 0:01:14.4]} 19. Qh5+ {[%clk
0:02:42.2]} 19... Kg8 {[%clk 0:01:14.8]} 20. Bxe5 {[%clk 0:02:42.8]} 20... Qc2
{[%clk 0:00:44.1]} 21. Bxg7 {[%clk 0:02:34.8]} 21... Kxg7 {[%clk 0:00:44.1]} 22.
Rg3+ {[%clk 0:02:29.6]} 22... Qg6 {[%clk 0:00:44.5]} 23. Rxg6+ {[%clk
0:02:27.7]} 23... fxg6 {[%clk 0:00:45.4]} 24. Qe5+ {[%clk 0:02:27]} 24... Kg8
{[%clk 0:00:39.7]} 25. Rc1 {[%clk 0:02:25.5]} 25... Bf5 {[%clk 0:00:31.6]} 26.
Rc7 {[%clk 0:02:20.6]} 26... Rf7 {[%clk 0:00:32]} 27. Qxd5 {[%clk 0:02:13.6]}
27... Rf8 {[%clk 0:00:32]} 28. Rxb7 {[%clk 0:02:10.2]} 28... Kg7 {[%clk
0:00:31.2]} 29. Rxa7 {[%clk 0:02:03.8]} 1-0

[Event "Early-Titled-Tuesday-Blitz-November-28-2023"]
[Site "Chess.com"]
[Date "2023.11.28"]
[Round "2"]
[White "atbenina64"]
[Black "NigelDwarf"]
[Result "1-0"]
[WhiteElo "2781"]
[BlackElo "2531"]
[TimeControl "180+1"]
[EndTime "8:15:30 PST"]
[Termination "atbenina64 won by resignation"]

1. c4 {[%clk 0:03:00.9]} 1... Nf6 {[%clk 0:02:54.4]} 2. Nc3 {[%clk 0:03:01.1]}
2... g6 {[%clk 0:02:54.7]} 3. e4 {[%clk 0:02:58.5]} 3... d6 {[%clk 0:02:54.8]}
4. d4 {[%clk 0:02:58]} 4... Bg7 {[%clk 0:02:55.3]} 5. Be2 {[%clk 0:02:57.1]}
5... O-O {[%clk 0:02:55.7]} 6. Be3 {[%clk 0:02:57.8]} 6... c5 {[%clk 0:02:50]}
7. d5 {[%clk 0:02:57.8]} 7... e6 {[%clk 0:02:49.8]} 8. Nf3 {[%clk 0:02:58.1]}
8... exd5 {[%clk 0:02:50]} 9. cxd5 {[%clk 0:02:58.8]} 9... Bg4 {[%clk
0:02:34.9]} 10. Nd2 {[%clk 0:02:58.7]} 10... Bxe2 {[%clk 0:02:34.9]} 11. Qxe2
{[%clk 0:02:59.6]} 11... Re8 {[%clk 0:02:30.9]} 12. O-O {[%clk 0:02:58.9]} 12...
Na6 {[%clk 0:02:22.6]} 13. Kh1 {[%clk 0:02:58.7]} 13... Nc7 {[%clk 0:02:22.5]}
14. f3 {[%clk 0:02:58.4]} 14... Rb8 {[%clk 0:02:20.2]} 15. a4 {[%clk 0:02:57.3]}
15... a6 {[%clk 0:02:13.4]} 16. a5 {[%clk 0:02:41.2]} 16... b5 {[%clk
0:02:03.1]} 17. axb6 {[%clk 0:02:40.4]} 17... Rxb6 {[%clk 0:02:03.4]} 18. Nc4
{[%clk 0:02:37.5]} 18... Rb4 {[%clk 0:02:02.1]} 19. Qd3 {[%clk 0:02:22]} 19...
Nb5 {[%clk 0:01:58.8]} 20. Rxa6 {[%clk 0:02:16.4]} 20... Nh5 {[%clk 0:01:42.2]}
21. Nxb5 {[%clk 0:02:13.3]} 21... Rxb5 {[%clk 0:01:39.8]} 22. Nxd6 {[%clk
0:02:13.4]} 22... Rxb2 {[%clk 0:01:12.5]} 23. Nxe8 {[%clk 0:02:09]} 23... Qxe8
{[%clk 0:01:08.9]} 24. d6 {[%clk 0:02:05]} 24... Be5 {[%clk 0:00:58.8]} 25. d7
{[%clk 0:02:00]} 25... Qd8 {[%clk 0:00:58.2]} 26. Bg5 {[%clk 0:01:46.6]} 26...
f6 {[%clk 0:00:54.1]} 27. Ra8 {[%clk 0:01:40]} 27... Rb8 {[%clk 0:00:51.9]} 28.
Rxb8 {[%clk 0:01:36.5]} 28... Bxb8 {[%clk 0:00:51]} 29. Bh6 {[%clk 0:01:30.8]}
1-0

[Event "Early-Titled-Tuesday-Blitz-November-28-2023"]
[Site "Chess.com"]
[Date "2023.11.28"]
[Round "2"]
[White "Goryachkina"]
[Black "Aleksandar-Topalov"]
[Result "1-0"]
[WhiteElo "2624"]
[BlackElo "2369"]
[TimeControl "180+1"]
[EndTime "8:15:34 PST"]
[Termination "Goryachkina won by resignation"]

1. e4 {[%clk 0:03:00.1]} 1... e6 {[%clk 0:02:59.6]} 2. d4 {[%clk 0:02:59.8]}
2... d5 {[%clk 0:02:59.6]} 3. Nd2 {[%clk 0:03:00.2]} 3... Nf6 {[%clk 0:02:59]}
4. e5 {[%clk 0:02:59.8]} 4... Ng8 {[%clk 0:02:59.2]} 5. Bd3 {[%clk 0:02:57.7]}
5... Ne7 {[%clk 0:02:59.3]} 6. Ne2 {[%clk 0:02:55.5]} 6... b6 {[%clk 0:02:58.9]}
7. Nf3 {[%clk 0:02:47.3]} 7... Qd7 {[%clk 0:02:57.9]} 8. Ng3 {[%clk 0:02:43.9]}
8... Ba6 {[%clk 0:02:55.8]} 9. O-O {[%clk 0:02:43]} 9... Bxd3 {[%clk 0:02:55.2]}
10. Qxd3 {[%clk 0:02:42.8]} 10... c5 {[%clk 0:02:51]} 11. c3 {[%clk 0:02:42.2]}
11... Nbc6 {[%clk 0:02:51.1]} 12. Be3 {[%clk 0:02:37.6]} 12... c4 {[%clk
0:02:40.4]} 13. Qd2 {[%clk 0:02:31.9]} 13... h6 {[%clk 0:02:40.3]} 14. b3 {[%clk
0:02:24.6]} 14... cxb3 {[%clk 0:02:31.6]} 15. axb3 {[%clk 0:02:24.4]} 15... Na5
{[%clk 0:02:31.7]} 16. Qb2 {[%clk 0:02:16.5]} 16... g6 {[%clk 0:02:28.2]} 17.
Rfc1 {[%clk 0:02:11.2]} 17... Bg7 {[%clk 0:02:24.9]} 18. c4 {[%clk 0:02:11.1]}
18... dxc4 {[%clk 0:02:16.1]} 19. bxc4 {[%clk 0:02:10.9]} 19... O-O {[%clk
0:02:14.9]} 20. h4 {[%clk 0:01:47.7]} 20... Rfc8 {[%clk 0:02:12.3]} 21. Nd2
{[%clk 0:01:47.3]} 21... Nf5 {[%clk 0:01:43.8]} 22. Nxf5 {[%clk 0:01:40.9]}
22... gxf5 {[%clk 0:01:43.9]} 23. c5 {[%clk 0:01:25.1]} 23... Rab8 {[%clk
0:01:31.6]} 24. cxb6 {[%clk 0:01:19]} 24... Rxc1+ {[%clk 0:01:30.2]} 25. Rxc1
{[%clk 0:01:16.7]} 25... axb6 {[%clk 0:01:30.1]} 26. Nf1 {[%clk 0:01:01.1]}
26... b5 {[%clk 0:01:25.6]} 27. Ng3 {[%clk 0:00:59.8]} 27... Nc4 {[%clk
0:01:25.7]} 28. Rxc4 {[%clk 0:00:59.4]} 1-0

[Event "Early-Titled-Tuesday-Blitz-November-28-2023"]
[Site "Chess.com"]
[Date "2023.11.28"]
[Round "2"]
[White "Nitzan_Steinberg"]
[Black "Predator0608"]
[Result "1-0"]
[WhiteElo "2914"]
[BlackElo "2585"]
[TimeControl "180+1"]
[EndTime "8:15:40 PST"]
[Termination "Nitzan_Steinberg won by resignation"]

1. d4 {[%clk 0:02:49.8]} 1... d5 {[%clk 0:02:59.4]} 2. Nf3 {[%clk 0:02:49.9]}
2... Nf6 {[%clk 0:02:59.1]} 3. c4 {[%clk 0:02:49.4]} 3... e6 {[%clk 0:02:59.2]}
4. g3 {[%clk 0:02:49.3]} 4... Bb4+ {[%clk 0:02:59.1]} 5. Bd2 {[%clk 0:02:49.2]}
5... Be7 {[%clk 0:02:59.7]} 6. Bg2 {[%clk 0:02:49.2]} 6... O-O {[%clk
0:03:00.4]} 7. O-O {[%clk 0:02:49.3]} 7... c6 {[%clk 0:03:01.1]} 8. Qc2 {[%clk
0:02:49.6]} 8... b6 {[%clk 0:03:01.8]} 9. Rd1 {[%clk 0:02:49.4]} 9... a5 {[%clk
0:03:02.3]} 10. Bf4 {[%clk 0:02:48.8]} 10... Ba6 {[%clk 0:03:02.1]} 11. Nbd2
{[%clk 0:02:47.4]} 11... Nbd7 {[%clk 0:03:01]} 12. Rac1 {[%clk 0:02:46.4]} 12...
c5 {[%clk 0:02:58.1]} 13. Ne5 {[%clk 0:02:40.9]} 13... Rc8 {[%clk 0:02:45.7]}
14. Qa4 {[%clk 0:02:37.7]} 14... dxc4 {[%clk 0:02:16.7]} 15. Nc6 {[%clk
0:02:23.5]} 15... Qe8 {[%clk 0:02:11.8]} 16. Nxc4 {[%clk 0:02:20]} 16... cxd4
{[%clk 0:01:42.5]} 17. Nxe7+ {[%clk 0:01:45.7]} 17... Qxe7 {[%clk 0:01:43.4]}
18. Bd6 {[%clk 0:01:45.7]} 18... Rxc4 {[%clk 0:01:34.3]} 19. Qxc4 {[%clk
0:01:45.8]} 19... Bxc4 {[%clk 0:00:58.1]} 20. Bxe7 {[%clk 0:01:45.8]} 20... Bxe2
{[%clk 0:00:49.4]} 21. Bxf8 {[%clk 0:01:34.1]} 21... Bxd1 {[%clk 0:00:48.9]} 22.
Ba3 {[%clk 0:01:31.3]} 1-0

[Event "Early-Titled-Tuesday-Blitz-November-28-2023"]
[Site "Chess.com"]
[Date "2023.11.28"]
[Round "2"]
[White "RebecaJimnz"]
[Black "ChessSwole"]
[Result "0-1"]
[WhiteElo "2291"]
[BlackElo "2673"]
[TimeControl "180+1"]
[EndTime "8:15:47 PST"]
[Termination "ChessSwole won by resignation"]

1. e4 {[%clk 0:03:00.9]} 1... e6 {[%clk 0:02:59.8]} 2. d3 {[%clk 0:03:01.1]}
2... d5 {[%clk 0:02:59.8]} 3. Nd2 {[%clk 0:03:02]} 3... c5 {[%clk 0:03:00.2]} 4.
Ngf3 {[%clk 0:03:02.6]} 4... Nc6 {[%clk 0:03:00.9]} 5. g3 {[%clk 0:03:03.3]}
5... Nf6 {[%clk 0:03:01.4]} 6. Bg2 {[%clk 0:03:04]} 6... Be7 {[%clk 0:03:02]} 7.
O-O {[%clk 0:03:04.7]} 7... O-O {[%clk 0:03:02.5]} 8. Re1 {[%clk 0:03:05.3]}
8... b5 {[%clk 0:03:02.9]} 9. e5 {[%clk 0:03:05.4]} 9... Nd7 {[%clk 0:03:03.6]}
10. Nf1 {[%clk 0:03:05.3]} 10... Bb7 {[%clk 0:03:03]} 11. h4 {[%clk 0:03:05.1]}
11... Qc7 {[%clk 0:03:03.5]} 12. Bf4 {[%clk 0:03:05]} 12... Rfc8 {[%clk
0:03:03.4]} 13. N1h2 {[%clk 0:03:05.4]} 13... Qd8 {[%clk 0:03:01.4]} 14. h5
{[%clk 0:03:03.8]} 14... h6 {[%clk 0:03:01.6]} 15. Ng4 {[%clk 0:03:03.9]} 15...
Bf8 {[%clk 0:03:02.3]} 16. Qd2 {[%clk 0:03:04.3]} 16... Ne7 {[%clk 0:03:00.5]}
17. c3 {[%clk 0:02:51.7]} 17... d4 {[%clk 0:02:51.9]} 18. cxd4 {[%clk
0:02:50.9]} 18... cxd4 {[%clk 0:02:52.2]} 19. Nxd4 {[%clk 0:02:38.6]} 19... Bxg2
{[%clk 0:02:53.1]} 20. Kxg2 {[%clk 0:02:38.9]} 20... Nc5 {[%clk 0:02:53.5]} 21.
Nxb5 {[%clk 0:02:36.4]} 21... Nxd3 {[%clk 0:02:53.3]} 22. Nd6 {[%clk 0:02:29.7]}
22... Nxe1+ {[%clk 0:02:49.1]} 23. Rxe1 {[%clk 0:02:29.1]} 23... Rc6 {[%clk
0:02:35.6]} 24. Bxh6 {[%clk 0:02:01.3]} 24... Nf5 {[%clk 0:02:27.2]} 25. Nxf5
{[%clk 0:01:55]} 25... exf5 {[%clk 0:02:28.1]} 26. Nf6+ {[%clk 0:01:51.2]} 26...
gxf6 {[%clk 0:02:17.9]} 27. Qe3 {[%clk 0:01:41.4]} 27... Bxh6 {[%clk 0:02:16.5]}
28. Qxh6 {[%clk 0:01:42.3]} 28... Qd5+ {[%clk 0:02:12.9]} 29. Kh3 {[%clk
0:01:35.2]} 29... Qe6 {[%clk 0:02:10.1]} 30. exf6 {[%clk 0:01:24.4]} 30... Qxf6
{[%clk 0:02:11]} 31. Qd2 {[%clk 0:01:10.6]} 31... Re6 {[%clk 0:02:09.5]} 32. Rc1
{[%clk 0:01:06.6]} 32... f4 {[%clk 0:02:05.8]} 33. Qd5 {[%clk 0:01:02.1]} 33...
Rae8 {[%clk 0:02:01.1]} 34. gxf4 {[%clk 0:01:01.3]} 34... Re4 {[%clk 0:01:52.2]}
35. Rg1+ {[%clk 0:00:59.9]} 35... Kh8 {[%clk 0:01:52]} 36. h6 {[%clk 0:00:35.7]}
36... Qe6+ {[%clk 0:01:42.7]} 0-1

[Event "Early-Titled-Tuesday-Blitz-November-28-2023"]
[Site "Chess.com"]
[Date "2023.11.28"]
[Round "2"]
[White "losersgame"]
[Black "MightyGMpretender"]
[Result "0-1"]
[WhiteElo "2544"]
[BlackElo "2814"]
[TimeControl "180+1"]
[EndTime "8:15:51 PST"]
[Termination "MightyGMpretender won by resignation"]

1. d4 {[%clk 0:02:56.1]} 1... Nf6 {[%clk 0:02:59.8]} 2. c4 {[%clk 0:02:55.8]}
2... e6 {[%clk 0:03:00.2]} 3. Nc3 {[%clk 0:02:55.9]} 3... d5 {[%clk 0:03:00.6]}
4. Bg5 {[%clk 0:02:55.3]} 4... c6 {[%clk 0:02:54.3]} 5. e3 {[%clk 0:02:53.9]}
5... Nbd7 {[%clk 0:02:54.6]} 6. Nf3 {[%clk 0:02:52]} 6... Qa5 {[%clk 0:02:54.4]}
7. Nd2 {[%clk 0:02:48.4]} 7... Bb4 {[%clk 0:02:46.4]} 8. Qc2 {[%clk 0:02:47]}
8... c5 {[%clk 0:02:31]} 9. Be2 {[%clk 0:02:08.6]} 9... cxd4 {[%clk 0:02:25.9]}
10. exd4 {[%clk 0:02:09.5]} 10... dxc4 {[%clk 0:02:25.8]} 11. Bxf6 {[%clk
0:02:08.9]} 11... Nxf6 {[%clk 0:02:25.7]} 12. Nxc4 {[%clk 0:02:09.1]} 12...
Bxc3+ {[%clk 0:02:15.3]} 13. bxc3 {[%clk 0:02:05]} 13... Qc7 {[%clk 0:02:15.8]}
14. Ne5 {[%clk 0:01:53.1]} 14... O-O {[%clk 0:02:15.1]} 15. Bf3 {[%clk
0:01:46.1]} 15... Nd7 {[%clk 0:02:00.7]} 16. Nxd7 {[%clk 0:00:39.9]} 16... Bxd7
{[%clk 0:02:00.6]} 17. c4 {[%clk 0:00:40.4]} 17... Rac8 {[%clk 0:01:52.5]} 18.
Rc1 {[%clk 0:00:38]} 18... Rfd8 {[%clk 0:01:40.3]} 19. O-O {[%clk 0:00:36.9]}
19... Bc6 {[%clk 0:01:40.4]} 20. d5 {[%clk 0:00:32.4]} 20... Bxd5 {[%clk
0:01:31.7]} 0-1

[Event "Early-Titled-Tuesday-Blitz-November-28-2023"]
[Site "Chess.com"]
[Date "2023.11.28"]
[Round "2"]
[White "RamonManon0g"]
[Black "LastHeroJr"]
[Result "1-0"]
[WhiteElo "2344"]
[BlackElo "2492"]
[TimeControl "180+1"]
[EndTime "8:15:56 PST"]
[Termination "RamonManon0g won on time"]

1. e4 {[%clk 0:03:00.9]} 1... c6 {[%clk 0:02:52.1]} 2. d4 {[%clk 0:03:00.6]}
2... d5 {[%clk 0:02:53]} 3. e5 {[%clk 0:03:00.7]} 3... c5 {[%clk 0:02:49.8]} 4.
dxc5 {[%clk 0:03:01.6]} 4... Nc6 {[%clk 0:02:49.4]} 5. Nf3 {[%clk 0:03:00.8]}
5... Bg4 {[%clk 0:02:47.3]} 6. Bb5 {[%clk 0:02:57.9]} 6... e6 {[%clk 0:02:46.6]}
7. Bxc6+ {[%clk 0:02:57.5]} 7... bxc6 {[%clk 0:02:46.4]} 8. O-O {[%clk
0:02:56.5]} 8... Bxc5 {[%clk 0:02:43.9]} 9. c4 {[%clk 0:02:56.5]} 9... Ne7
{[%clk 0:02:41.2]} 10. cxd5 {[%clk 0:02:56.5]} 10... cxd5 {[%clk 0:02:39.1]} 11.
Qa4+ {[%clk 0:02:55.3]} 11... Qd7 {[%clk 0:02:36.2]} 12. Qxg4 {[%clk 0:02:56.2]}
12... Nf5 {[%clk 0:02:34.5]} 13. Nbd2 {[%clk 0:02:50]} 13... h5 {[%clk
0:02:34.7]} 14. Qg5 {[%clk 0:02:46.9]} 14... Be7 {[%clk 0:02:32.5]} 15. Qf4
{[%clk 0:02:46.5]} 15... g5 {[%clk 0:02:32.7]} 16. Nxg5 {[%clk 0:02:44.9]} 16...
Rg8 {[%clk 0:02:32.9]} 17. Ndf3 {[%clk 0:02:42.7]} 17... O-O-O {[%clk
0:02:29.9]} 18. Bd2 {[%clk 0:02:32.6]} 18... Kb8 {[%clk 0:02:30.1]} 19. Rfc1
{[%clk 0:02:20.1]} 19... Ka8 {[%clk 0:02:28.6]} 20. Bb4 {[%clk 0:02:19.7]} 20...
h4 {[%clk 0:02:15.1]} 21. Bxe7 {[%clk 0:02:17.7]} 21... Qxe7 {[%clk 0:02:16]}
22. h3 {[%clk 0:02:11.4]} 22... Rg6 {[%clk 0:02:13.9]} 23. Qa4 {[%clk
0:02:06.5]} 23... Rdg8 {[%clk 0:02:10.4]} 24. Qc6+ {[%clk 0:01:58.2]} 24... Kb8
{[%clk 0:02:10.2]} 25. Rc3 {[%clk 0:01:42.4]} 1-0

[Event "Early-Titled-Tuesday-Blitz-November-28-2023"]
[Site "Chess.com"]
[Date "2023.11.28"]
[Round "2"]
[White "Khromkin"]
[Black "campochess"]
[Result "1-0"]
[WhiteElo "2494"]
[BlackElo "2226"]
[TimeControl "180+1"]
[EndTime "8:15:56 PST"]
[Termination "Khromkin won by resignation"]

1. d4 {[%clk 0:03:00.9]} 1... c5 {[%clk 0:03:00]} 2. d5 {[%clk 0:03:00.3]} 2...
Nf6 {[%clk 0:02:59.1]} 3. Nc3 {[%clk 0:03:00.9]} 3... g6 {[%clk 0:02:59.1]} 4.
e4 {[%clk 0:03:01.5]} 4... d6 {[%clk 0:02:59.4]} 5. f4 {[%clk 0:03:01]} 5... Bg7
{[%clk 0:02:59.2]} 6. Bb5+ {[%clk 0:03:00.6]} 6... Nfd7 {[%clk 0:02:56.7]} 7. e5
{[%clk 0:02:59.5]} 7... a6 {[%clk 0:02:56.5]} 8. Bxd7+ {[%clk 0:02:52.4]} 8...
Bxd7 {[%clk 0:02:55.5]} 9. Nf3 {[%clk 0:02:45.2]} 9... O-O {[%clk 0:02:54]} 10.
O-O {[%clk 0:02:42.6]} 10... b5 {[%clk 0:02:53.8]} 11. h3 {[%clk 0:02:38.5]}
11... b4 {[%clk 0:02:40.8]} 12. Ne4 {[%clk 0:02:38.2]} 12... dxe5 {[%clk
0:02:35.9]} 13. fxe5 {[%clk 0:02:36.7]} 13... Bb5 {[%clk 0:02:33.8]} 14. Re1
{[%clk 0:02:34.7]} 14... Nd7 {[%clk 0:02:31.4]} 15. e6 {[%clk 0:02:30.4]} 15...
Nf6 {[%clk 0:02:26.5]} 16. exf7+ {[%clk 0:02:28.1]} 16... Rxf7 {[%clk
0:02:26.6]} 17. Neg5 {[%clk 0:02:28.7]} 17... Rf8 {[%clk 0:02:20.4]} 18. Ne6
{[%clk 0:02:28.1]} 18... Qb6 {[%clk 0:02:20.3]} 19. Nxf8 {[%clk 0:02:25.3]}
19... Rxf8 {[%clk 0:02:18.9]} 20. Rxe7 {[%clk 0:02:07.4]} 20... c4+ {[%clk
0:02:15.6]} 21. Be3 {[%clk 0:02:03.9]} 21... Qd6 {[%clk 0:02:15.3]} 22. Re6
{[%clk 0:01:59.5]} 22... Qxd5 {[%clk 0:02:15]} 23. Qxd5 {[%clk 0:01:58.9]} 23...
Nxd5 {[%clk 0:02:13.8]} 24. Bc5 {[%clk 0:01:59.5]} 24... Rc8 {[%clk 0:02:10.1]}
25. Bf2 {[%clk 0:01:59.4]} 25... Bxb2 {[%clk 0:02:08.9]} 26. Rb1 {[%clk
0:01:36.9]} 26... Bg7 {[%clk 0:02:06.7]} 27. Bd4 {[%clk 0:01:31.1]} 27... a5
{[%clk 0:02:00.1]} 28. Bxg7 {[%clk 0:01:23.5]} 28... Kxg7 {[%clk 0:02:00.2]} 29.
Rf1 {[%clk 0:01:23.2]} 29... Rc7 {[%clk 0:01:52.7]} 30. Nd4 {[%clk 0:01:21.4]}
30... Bd7 {[%clk 0:01:49.1]} 31. Re5 {[%clk 0:01:16.4]} 31... Nb6 {[%clk
0:01:21.9]} 32. Re7+ {[%clk 0:01:15.7]} 32... Kh6 {[%clk 0:01:22]} 33. Rff7
{[%clk 0:01:07.9]} 33... Kg5 {[%clk 0:01:19.4]} 34. Nf3+ {[%clk 0:01:05.7]} 1-0